bitfinex/quotes_ETHUSD_20220305
["timestamp","ask_amount","ask_price","bid_price","bid_amount"]
[1646518371749,0.00360491,2656.5,2656.3,0.08830277]
[1646518372050,1.1713,2656.8,2656.4,0.57153657]
[1646518372250,0.00360491,2656.5,2656.4,0.57153657]
[1646518372449,0.00360491,2656.5,2656.4,1.11153657]
[1646518373253,0.96066313,2656.7,2656.4,1.11153657]
[1646518373448,0.00360487,2656.6,2656.4,1.15546116]
[1646518374251,0.96066313,2656.7,2656.4,1.15546116]
[1646518374651,0.00360484,2656.6,2656.4,1.15546116]
[1646518375510,0.96066313,2656.7,2656.4,1.15546116]
[1646518375710,0.00349669,2656.6,2656.4,1.15546116]
[1646518376710,0.96066313,2656.7,2656.4,1.15546116]
[1646518377112,0.00349669,2656.6,2656.4,1.15546116]
[1646518377916,0.96066313,2656.7,2656.4,1.15546116]
[1646518378316,0.00349669,2656.6,2656.4,1.15546116]
[1646518378748,0.00349669,2656.6,2656.5,0.04424899]
[1646518379150,0.96066313,2656.7,2656.5,0.04424899]
[1646518379351,0.96403131,2656.7,2656.5,0.04424899]
[1646518380362,0.96066313,2656.7,2656.6,0.57153657]
[1646518380561,0.96403128,2656.7,2656.6,0.57153657]
[1646518381558,0.96066313,2656.7,2656.6,0.57153657]
[1646518382357,0.00336812,2656.8,2656.6,0.57153657]
[1646518382810,1.5727,2657.2,2656.6,0.57153657]
[1646518383105,0.00337407,2656.8,2656.6,0.57153657]
[1646518383505,0.95545004,2656.8,2656.6,0.57153657]
[1646518383710,0.95545004,2656.8,2656.6,0.61537551]
[1646518383904,0.95207597,2656.8,2656.6,0.61537551]
[1646518384105,0.95545004,2656.8,2656.6,0.61537551]
[1646518384305,0.00337407,2656.8,2656.6,0.61537551]
[1646518385111,1.1967,2657.2,2656.6,0.61537551]
[1646518385315,0.00337407,2656.8,2656.6,0.61537551]
[1646518385512,0.00337407,2656.8,2656.7,1.11153657]
[1646518386356,0.89484545,2657.0,2656.7,1.11153657]
[1646518386554,0.00337363,2656.9,2656.7,1.11153657]
[1646518387453,0.89484545,2657.0,2656.7,1.11153657]
[1646518387854,0.0033736,2656.9,2656.7,1.11153657]
[1646518388754,0.89484545,2657.0,2656.7,1.11153657]
[1646518388958,0.00179863,2656.9,2656.7,1.19948045]
[1646518389555,0.00179863,2656.9,2656.7,1.44508045]
[1646518390106,1.1967,2657.2,2656.7,1.44508045]
[1646518390308,1.16294501,2657.0,2656.7,1.44508045]
[1646518393410,1.16294501,2657.0,2656.9,0.04371049]
[1646518393854,1.166551,2657.0,2656.9,1.55611706]
[1646518394255,0.00360599,2657.0,2656.9,1.55611706]
[1646518394658,0.01610833,2657.4,2656.9,2.09611706]
[1646518394659,0.00168653,2657.4,2656.9,2.09611706]
[1646518394854,0.00168653,2657.6,2656.9,2.09611706]
[1646518395058,0.0034264,2657.1,2656.9,2.09611706]
[1646518395861,0.95397328,2657.2,2656.9,2.09611706]
[1646518396259,0.00342637,2657.1,2656.9,2.09611706]
[1646518397157,0.95397328,2657.2,2656.9,2.09611706]
[1646518397360,0.00342637,2657.1,2656.9,1.15524706]
[1646518398409,0.95397328,2657.2,2656.9,1.15524706]
[1646518398609,0.00332358,2657.1,2656.9,1.15524706]
[1646518398809,0.00332358,2657.1,2656.9,1.40084706]
[1646518399108,0.00332358,2657.1,2657.0,0.04462324]
[1646518399509,0.95397328,2657.2,2657.0,0.04462324]
[1646518399909,0.95724657,2657.2,2657.0,0.04462324]
[1646518400109,0.95724657,2657.2,2657.0,0.04352377]
[1646518400713,0.95397328,2657.2,2657.0,0.04352377]
[1646518401012,0.95724654,2657.2,2657.0,0.04352377]
[1646518401873,0.95397328,2657.2,2657.0,0.04352377]
[1646518402270,0.95712005,2657.2,2657.0,0.04352377]
[1646518403270,0.95397328,2657.2,2657.0,0.04352377]
[1646518403471,0.95712685,2657.2,2657.0,0.04352377]
[1646518403670,0.95712685,2657.2,2657.1,0.04369038]
[1646518404477,0.95397328,2657.2,2657.1,0.04369038]
[1646518407714,0.95397328,2657.2,2657.1,1.18623347]
[1646518410365,0.95397328,2657.2,2657.1,1.13623347]
[1646518410565,3.82024276,2657.0,2656.9,0.2456]
[1646518420412,3.82024276,2657.0,2656.9,0.7856]
[1646518425260,3.82024276,2657.0,2656.9,0.776071]
[1646518433365,3.82024276,2657.0,2656.9,1.716911]
[1646518436209,3.82024276,2657.0,2656.6,0.539451]
[1646518436409,3.82024276,2657.0,2656.7,0.54]
[1646518436611,3.82024276,2657.0,2656.7,0.73046141]
[1646518436813,3.82024276,2657.0,2656.9,0.768]
[1646518437011,3.82340753,2657.0,2656.9,0.768]
[1646518437213,3.82340753,2657.0,2656.9,1.308]
[1646518438019,3.82024276,2657.0,2656.9,1.308]
[1646518439860,0.2649,2656.9,2656.6,1.88169]
[1646518440260,3.7649,2656.9,2656.6,1.88169]
[1646518440462,0.2649,2656.9,2656.6,1.88169]
[1646518440663,1.01556029,2656.8,2656.6,1.88169]
[1646518441462,1.01556029,2656.8,2656.6,2.88169]
[1646518441659,1.01556029,2656.8,2656.6,1.88169]
[1646518442064,0.26806482,2656.9,2656.6,1.88169]
[1646518442518,1.5,2656.8,2656.3,2.93150159]
[1646518442708,1.5,2656.8,2656.4,0.73046141]
[1646518442910,3.82024276,2657.0,2656.4,0.73046141]
[1646518443108,0.00316485,2656.9,2656.4,0.73046141]
[1646518443313,0.00316485,2656.9,2656.4,1.67132141]
[1646518443511,0.00316485,2656.9,2656.6,1.88169]
[1646518443711,0.00316485,2656.9,2656.7,0.54]
[1646518443909,0.00316485,2656.9,2656.7,0.73046141]
[1646518444110,3.82024276,2657.0,2656.7,0.73046141]
[1646518444511,0.00316485,2656.9,2656.7,0.73046141]
[1646518445319,3.82024276,2657.0,2656.7,0.73046141]
[1646518445518,0.00316482,2656.9,2656.7,0.73046141]
[1646518446257,0.00316482,2656.9,2656.8,0.94083]
[1646518446459,3.82024276,2657.0,2656.8,1.48083]
[1646518446660,2.00316482,2656.9,2656.6,2.23728157]
[1646518446858,2.00316482,2656.9,2656.7,0.54]
[1646518447458,2.00316482,2656.9,2656.8,0.94083]
[1646518447660,2.0,2656.9,2656.8,1.48083]
[1646518447860,2.00316482,2656.9,2656.8,1.48083]
[1646518448859,2.0,2656.9,2656.8,1.48083]
[1646518451715,3.82340755,2657.0,2656.4,2.03742133]
[1646518451716,5.0,2656.7,2656.4,2.03742133]
[1646518451918,5.0,2656.7,2656.4,0.55656133]
[1646518451919,5.376,2656.7,2656.4,0.55656133]
[1646518452121,5.37499721,2656.7,2656.0,1.52272204]
[1646518452317,0.376,2656.6,2656.0,0.98272204]
[1646518452517,3.876,2656.6,2656.0,0.98272204]
[1646518452719,0.376,2656.4,2656.0,0.98272204]
[1646518452919,0.34650462,2656.4,2656.0,0.98272204]
[1646518454858,1.0619755,2656.5,2656.0,0.98272204]
[1646518455063,1.08172814,2656.1,2656.0,0.98272204]
[1646518457266,4.01727796,2656.0,2655.7,3.97482375]
[1646518461871,4.01727796,2656.0,2655.7,2.97482375]
[1646518467133,4.01727796,2656.0,2655.7,1.09250375]
[1646518467328,4.01727796,2656.0,2655.7,4.97481375]
[1646518467526,4.01727796,2656.0,2655.7,3.97481375]
[1646518467726,4.01727796,2656.0,2655.7,4.97481375]
[1646518468527,4.01727796,2656.0,2655.8,0.94121]
[1646518468764,4.01727796,2656.0,2655.9,0.54]
[1646518473717,4.01727796,2656.0,2655.9,0.49]
[1646518481014,4.01727796,2656.0,2655.7,5.43481375]
[1646518481814,4.01727796,2656.0,2655.7,5.97481375]
[1646518483218,1.01102215,2655.8,2655.7,5.97481375]
[1646518484657,4.04416251,2656.0,2655.7,5.97481375]
[1646518486963,0.91530384,2655.9,2655.7,5.97481375]
[1646518487610,0.91530384,2655.9,2655.7,3.97481375]
[1646518488214,4.04416251,2656.0,2655.7,4.97481375]
[1646518489409,1.02842396,2655.9,2655.7,4.97481375]
[1646518489613,1.02842396,2655.9,2655.7,3.97481375]
[1646518489811,1.02842396,2655.9,2655.7,4.97481375]
[1646518490213,1.02842396,2655.9,2655.7,3.97481375]
[1646518495814,1.02724251,2655.9,2655.7,3.97481375]
[1646518496313,1.02724251,2655.9,2655.7,3.92481375]
[1646518496513,1.02724251,2655.9,2655.7,2.04250375]
[1646518499263,4.04416251,2656.0,2655.7,2.04250375]
[1646518503423,3.47942419,2656.0,2655.9,1.15954901]
[1646518503623,3.47942419,2656.0,2655.9,1.69954901]
[1646518504222,3.49849752,2656.0,2655.9,0.54]
[1646518507168,9.95809064,2656.9,2655.9,4.00769527]
[1646518507371,9.95809064,2656.9,2656.3,1.0]
[1646518507372,9.40675542,2656.9,2656.3,1.0]
[1646518507568,5.2355,2657.2,2656.4,0.54]
[1646518507768,8.7355,2657.2,2656.4,3.90602171]
[1646518507969,5.2355,2657.2,2656.4,3.90602171]
[1646518508268,5.2355,2657.2,2656.4,4.90602171]
[1646518508469,5.24128333,2657.2,2656.5,0.87063855]
[1646518508669,5.24128333,2657.2,2656.6,0.54]
[1646518509069,5.24128333,2657.2,2656.8,0.33945582]
[1646518509272,3.82197956,2657.0,2656.8,0.87945582]
[1646518510215,3.82024276,2657.0,2656.8,0.87945582]
[1646518510418,3.82376502,2657.0,2656.8,0.87945582]
[1646518511420,3.82024276,2657.0,2656.8,0.87945582]
[1646518511618,3.82024276,2657.0,2656.9,1.11538984]
[1646518511816,3.82376502,2657.0,2656.9,1.65538984]
[1646518512614,3.82024276,2657.0,2656.9,1.65538984]
[1646518513861,3.82024276,2657.0,2656.9,2.59619984]
[1646518514261,3.82024276,2657.0,2656.9,3.76592775]
[1646518514461,3.82024276,2657.0,2656.9,3.93565566]
[1646518514662,3.82024276,2657.0,2656.9,1.82026582]
[1646518515265,3.82024276,2657.0,2656.9,0.87945582]
[1646518517537,3.82024276,2657.0,2656.9,1.82026582]
[1646518518720,3.81923963,2657.0,2656.9,1.82026582]
[1646518519719,3.81923963,2657.0,2656.9,5.32026582]
[1646518520126,3.81923963,2657.0,2656.9,6.32026582]
[1646518521123,3.81923963,2657.0,2656.9,2.82026582]
[1646518521359,3.81923963,2657.0,2656.9,1.82026582]
[1646518521559,3.81923963,2657.0,2656.9,2.82026582]
[1646518521758,3.81923963,2657.0,2656.9,1.82026582]
[1646518525814,3.81923963,2657.0,2656.9,5.32026582]
[1646518526014,3.81923963,2657.0,2656.9,1.82026582]
[1646518526215,3.81923963,2657.0,2656.9,2.82026582]
[1646518526416,3.81923963,2657.0,2656.9,1.82026582]
[1646518530265,3.81923963,2657.0,2656.9,0.87945582]
[1646518531067,3.81923963,2657.0,2656.9,0.33945582]
[1646518531466,4.19523963,2657.0,2656.9,0.33945582]
[1646518538968,3.99523963,2657.0,2656.9,0.33945582]
[1646518541819,3.98575251,2657.0,2656.9,0.33945582]
[1646518553464,3.60975251,2657.0,2656.9,0.33945582]
[1646518564920,3.60881782,2657.0,2656.9,0.33945582]
[1646518585723,3.60780492,2657.0,2656.9,0.33945582]
[1646518588527,3.61238128,2657.0,2656.9,0.30365482]
[1646518588966,3.61238128,2657.0,2656.9,0.16972791]
[1646518589164,3.61238128,2657.0,2656.9,0.30365482]
[1646518591572,3.61238128,2657.0,2656.9,0.84365482]
[1646518597874,3.61238128,2657.0,2656.9,2.04702522]
[1646518598070,3.61238128,2657.0,2656.9,5.54702522]
[1646518598471,3.61238128,2657.0,2656.9,9.91155567]
[1646518598671,3.61238128,2657.0,2656.9,10.91155567]
[1646518604967,3.3274403,2657.0,2656.9,10.91155567]
[1646518605970,1.65543958,2657.0,2656.9,10.91155567]
[1646518612373,0.00168653,2657.6,2656.9,10.91155567]
[1646518612574,1.17276289,2657.7,2657.0,1.94069]
[1646518612775,1.17276289,2657.7,2657.2,0.9407]
[1646518612974,1.17107636,2657.7,2657.4,0.30365482]
[1646518613174,0.376,2657.8,2657.5,0.54]
[1646518613378,1.4421522,2657.8,2657.5,0.54]
[1646518615130,1.44544609,2657.8,2657.5,0.54]
[1646518615936,1.4421522,2657.8,2657.5,0.54]
[1646518616132,1.44544609,2657.8,2657.5,0.54]
[1646518617033,1.4421522,2657.8,2657.5,0.54]
[1646518617434,1.44543869,2657.8,2657.5,0.54]
[1646518618232,1.4421522,2657.8,2657.6,0.13392691]
[1646518618436,1.4421522,2657.8,2657.6,0.30365482]
[1646518618634,0.37928649,2657.8,2657.6,0.30365482]
[1646518619298,0.00328649,2657.8,2657.6,0.84365482]
[1646518619496,0.376,2658.0,2657.6,0.84365482]
[1646518619697,0.00328646,2657.8,2657.6,0.84365482]
[1646518619898,0.00328646,2657.8,2657.7,0.94059]
[1646518620102,0.00328646,2657.8,2657.7,1.48059]
[1646518620701,0.37768653,2658.3,2657.7,1.48059]
[1646518620903,0.00172892,2657.9,2657.7,1.48059]
[1646518621901,0.376,2658.1,2657.7,1.48059]
[1646518622101,0.00172892,2657.9,2657.7,1.48059]
[1646518623217,0.376,2658.1,2657.7,1.48059]
[1646518623417,0.00172892,2657.9,2657.7,1.48059]
[1646518623818,0.00172892,2657.9,2657.7,0.54]
[1646518624318,0.376,2658.1,2657.7,0.54]
[1646518624519,0.0035188,2657.9,2657.7,0.54]
[1646518625426,0.37768653,2658.3,2657.7,0.54]
[1646518625827,0.0035188,2657.9,2657.7,0.54]
[1646518626476,0.0035188,2657.9,2657.8,4.49415374]
[1646518626676,0.00168653,2658.3,2657.8,5.97468374]
[1646518626876,1.2249,2658.4,2657.9,1.94039]
[1646518627078,0.01407311,2658.3,2658.0,0.54]
[1646518627878,1.2249,2658.4,2658.0,0.54]
[1646518628278,0.00351857,2658.3,2658.0,0.54]
[1646518628480,0.00351857,2658.3,2658.1,0.94037]
[1646518628682,0.00351857,2658.3,2658.2,0.84365482]
[1646518629085,0.376,2658.6,2658.2,0.84365482]
[1646518629481,0.00341296,2658.4,2658.2,0.84365482]
[1646518630030,0.00341296,2658.4,2657.9,8.32116]
[1646518630031,3.21597518,2658.0,2657.9,8.8921452]
[1646518631827,3.21597518,2658.0,2657.9,5.3921452]
[1646518632228,3.21597518,2658.0,2657.9,9.4321452]
[1646518632627,3.21597518,2658.0,2657.9,5.9321452]
[1646518632828,3.21597518,2658.0,2657.9,9.4321452]
[1646518633328,0.00328365,2658.1,2657.9,9.4321452]
[1646518633971,0.00168653,2658.6,2657.9,9.4321452]
[1646518634169,1.5692,2658.7,2657.9,9.4321452]
[1646518634170,0.00328362,2658.1,2657.9,9.4321452]
[1646518634368,0.00328362,2658.1,2658.0,3.5]
[1646518634568,0.00328362,2658.1,2658.0,4.04]
[1646518634769,0.00328362,2658.1,2658.0,5.04]
[1646518635173,1.19488653,2658.7,2658.2,0.9403]
[1646518635372,0.01313241,2658.6,2658.3,0.54]
[1646518636372,1.1932,2658.7,2658.3,0.54]
[1646518636576,0.00328938,2658.6,2658.3,0.54]
[1646518637272,0.00328938,2658.6,2658.4,12.55170061]
[1646518637527,0.00168653,2658.8,2658.5,0.54]
[1646518637716,0.00328938,2658.6,2658.5,0.54]
[1646518638617,1.17876259,2658.9,2658.5,0.54]
[1646518638818,0.00168653,2659.1,2658.5,0.54]
[1646518639018,0.00328932,2658.7,2658.5,0.54]
[1646518639822,0.01315532,2659.1,2658.5,0.54]
[1646518640022,1.04356369,2659.1,2658.5,0.54]
[1646518640223,0.00328887,2658.7,2658.5,0.54]
[1646518641026,0.00168653,2659.0,2658.5,0.54]
[1646518641270,0.00328887,2658.7,2658.5,0.54]
[1646518642270,0.00168653,2659.0,2658.5,0.54]
[1646518642470,0.79356369,2659.1,2658.5,0.54]
[1646518642871,0.00328887,2658.7,2658.5,0.54]
[1646518643471,0.00168653,2659.0,2658.5,0.54]
[1646518643670,0.79356369,2659.1,2658.5,0.54]
[1646518645125,0.00328602,2658.9,2658.5,0.54]
[1646518645924,0.79356369,2659.1,2658.5,0.54]
[1646518646127,0.00172617,2658.8,2658.5,0.54]
[1646518647128,0.79356369,2659.1,2658.5,0.54]
[1646518647327,0.00328873,2658.8,2658.5,0.54]
[1646518649378,0.79356369,2659.1,2658.5,0.54]
[1646518649778,0.00328873,2658.8,2658.5,0.54]
[1646518650680,0.79356369,2659.1,2658.5,0.54]
[1646518650880,0.00335429,2658.8,2658.5,0.54]
[1646518651581,0.00335429,2658.8,2658.6,0.94026]
[1646518651782,0.00335429,2658.8,2658.6,1.48026]
[1646518651982,0.79356369,2659.1,2658.6,1.48026]
[1646518652186,0.00335429,2658.8,2658.6,1.48026]
[1646518653019,0.79356369,2659.1,2658.6,1.48026]
[1646518653220,0.79356369,2659.1,2658.6,5.15917142]
[1646518653420,0.00335426,2658.8,2658.6,5.15917142]
[1646518653821,0.00335426,2658.8,2658.6,6.15917142]
[1646518654218,1.19406597,2659.2,2658.6,6.15917142]
[1646518654419,1.1789,2659.2,2658.6,6.15917142]
[1646518654626,0.0032842,2658.8,2658.6,7.2379753]
[1646518655423,0.00175094,2659.1,2658.6,7.2379753]
[1646518655624,1.1789,2659.2,2658.6,7.80856032]
[1646518655825,0.0032842,2658.8,2658.6,7.80856032]
[1646518656693,0.00175094,2659.1,2658.6,7.80856032]
[1646518656893,0.0032842,2658.8,2658.6,7.80856032]
[1646518657094,0.0032842,2658.8,2658.7,3.5]
[1646518657295,0.0032842,2658.8,2658.7,4.04]
[1646518657500,0.0032842,2658.8,2658.7,0.54]
[1646518657898,1.18065094,2659.2,2658.7,8.90937283]
[1646518658096,0.00328889,2658.9,2658.8,1.88018]
[1646518658297,0.00328889,2658.9,2658.8,2.42018]
[1646518658496,0.00328889,2658.9,2658.8,9.59909142]
[1646518658698,0.00328889,2658.9,2658.8,11.59909142]
[1646518659198,1.21875094,2659.7,2658.8,11.59909142]
[1646518659397,0.00328883,2659.0,2658.8,11.59909142]
[1646518659698,0.00328883,2659.0,2658.8,8.09909142]
[1646518660327,0.00175094,2659.5,2658.8,8.09909142]
[1646518660528,0.0032888,2659.0,2658.8,8.09909142]
[1646518661528,1.16982321,2659.6,2658.8,8.09909142]
[1646518661731,0.00328848,2659.0,2658.9,3.5]
[1646518662030,0.00328848,2659.0,2658.9,0.54]
[1646518662229,0.00328848,2659.0,2658.9,1.54]
[1646518662430,0.00198224,2659.0,2658.9,0.54]
[1646518662632,0.01315195,2659.4,2658.9,0.54]
[1646518662828,1.16982321,2659.6,2658.9,0.54]
[1646518663029,1.16807227,2659.6,2658.9,0.54]
[1646518663229,1.16807227,2659.6,2658.9,4.21891142]
[1646518663429,1.16807227,2659.6,2658.9,6.15891142]
[1646518664175,0.00172354,2659.4,2658.9,6.15891142]
[1646518665182,1.16807227,2659.6,2658.9,6.15891142]
[1646518665378,0.00333724,2659.3,2658.9,6.15891142]
[1646518665577,1.02549008,2659.2,2658.9,6.15891142]
[1646518665778,1.02549008,2659.2,2658.9,9.65891142]
[1646518666178,1.02549008,2659.2,2658.9,6.15891142]
[1646518666580,1.02882738,2659.2,2658.9,6.15891142]
[1646518667182,1.02882738,2659.2,2658.9,9.65891142]
[1646518667381,1.02882738,2659.2,2658.9,9.65478776]
[1646518667624,1.02549008,2659.2,2658.9,6.15478776]
[1646518667830,1.02882738,2659.2,2658.9,6.15478776]
[1646518668629,1.02549008,2659.2,2658.9,6.15478776]
[1646518669025,1.02882738,2659.2,2658.9,6.15478776]
[1646518669628,1.02882738,2659.2,2658.9,9.65478776]
[1646518669827,1.02882738,2659.2,2658.9,6.15478776]
[1646518670026,1.02549008,2659.2,2658.9,6.15478776]
[1646518670231,1.02867935,2659.2,2658.9,6.15478776]
[1646518671033,1.02549008,2659.2,2658.9,6.15478776]
[1646518671274,1.02867935,2659.2,2658.9,6.15478776]
[1646518671874,1.02867935,2659.2,2658.9,9.65478776]
[1646518672275,1.02549008,2659.2,2658.9,9.65478776]
[1646518672674,1.02867935,2659.2,2658.9,9.65478776]
[1646518672875,1.02867935,2659.2,2658.9,6.15478776]
[1646518673476,1.02549008,2659.2,2658.9,6.15478776]
[1646518675035,0.00175094,2659.6,2658.9,6.15478776]
[1646518675229,1.21875094,2659.7,2658.9,6.15478776]
[1646518676435,0.89357441,2659.5,2658.9,6.15478776]
[1646518676634,0.89357441,2659.5,2658.9,9.65478776]
[1646518677235,0.64357441,2659.5,2658.9,9.65478776]
[1646518677434,0.00340927,2659.3,2658.9,9.65478776]
[1646518677634,0.00340927,2659.3,2658.9,2.47587634]
[1646518677835,0.00340927,2659.3,2658.9,1.47587634]
[1646518678336,0.64532535,2659.5,2658.9,4.76128598]
[1646518678536,0.00340934,2659.2,2658.9,4.76128598]
[1646518678771,0.00340934,2659.2,2658.9,2.47587634]
[1646518678972,0.00340934,2659.2,2658.9,1.47587634]
[1646518679573,0.59357441,2659.5,2658.9,1.47587634]
[1646518679774,0.00340937,2659.2,2658.9,1.47587634]
[1646518680178,1.21230052,2659.1,2658.9,1.47587634]
[1646518680979,1.21557801,2659.1,2658.9,1.47587634]
[1646518681380,0.00327749,2659.1,2658.9,1.47587634]
[1646518681983,0.00175094,2659.6,2658.9,1.47587634]
[1646518682281,0.00327749,2659.1,2658.9,1.47587634]
[1646518682528,1.05614948,2659.5,2658.9,2.66459162]
[1646518682726,1.05614948,2659.5,2658.9,3.66459162]
[1646518682925,1.05614948,2659.5,2658.9,2.47587634]
[1646518683128,1.05614948,2659.5,2658.9,1.47587634]
[1646518683926,1.56113643,2659.7,2658.9,1.47587634]
[1646518685130,1.12849948,2659.4,2658.9,1.47587634]
[1646518690433,1.50449948,2659.4,2658.9,1.47587634]
[1646518692735,0.97971818,2659.0,2658.9,1.47587634]
[1646518695586,0.97971818,2659.0,2658.9,0.94]
[1646518696195,0.97971818,2659.0,2658.8,4.42018]
[1646518696388,0.97971818,2659.0,2658.8,3.88018]
[1646518697186,0.97855633,2659.0,2658.8,2.88018]
[1646518697387,3.5,2658.9,2658.7,0.00328657]
[1646518697634,1.35455633,2659.0,2658.6,0.57058502]
[1646518697936,1.35455633,2659.0,2658.7,0.00328654]
[1646518698532,3.876,2658.9,2658.7,0.00328654]
[1646518698741,3.876,2658.8,2658.6,0.57058502]
[1646518698933,0.376,2658.8,2658.6,0.57058502]
[1646518699135,0.376,2658.8,2658.7,0.0032865]
[1646518699734,0.376,2658.9,2658.7,0.0032865]
[1646518699937,3.876,2658.9,2658.6,0.57058502]
[1646518700335,0.376,2658.9,2658.6,0.57387092]
[1646518701283,0.376,2658.9,2658.6,0.57058502]
[1646518701479,0.376,2658.9,2658.6,0.57387092]
[1646518702378,0.376,2658.9,2658.6,0.57058502]
[1646518702576,0.376,2658.9,2658.6,0.57387092]
[1646518703579,0.376,2658.9,2658.6,0.57058502]
[1646518703783,0.376,2658.9,2658.6,0.57387096]
[1646518704782,0.376,2658.9,2658.6,0.57058502]
[1646518705026,0.376,2658.9,2658.6,0.57387096]
[1646518705930,0.376,2658.9,2658.6,0.57058502]
[1646518706129,0.376,2658.9,2658.6,0.57387096]
[1646518707133,0.376,2658.9,2658.6,0.57058502]
[1646518707330,0.376,2658.9,2658.6,0.57387096]
[1646518708331,0.376,2658.9,2658.6,0.57058502]
[1646518708530,0.376,2658.9,2658.6,0.57387096]
[1646518709577,0.376,2658.9,2658.6,0.57058502]
[1646518709777,0.376,2658.9,2658.6,0.57387096]
[1646518710781,0.376,2658.9,2658.6,0.57058502]
[1646518710979,0.376,2658.9,2658.6,0.57387096]
[1646518711983,0.376,2658.9,2658.6,0.57058502]
[1646518712180,0.376,2658.9,2658.6,0.57387096]
[1646518713229,0.376,2658.9,2658.6,0.57058502]
[1646518713432,0.376,2658.9,2658.6,0.57387096]
[1646518715539,0.376,2658.9,2658.6,0.57058502]
[1646518715939,0.376,2658.9,2658.6,0.57387096]
[1646518716780,0.376,2658.9,2658.6,0.57058502]
[1646518717180,0.376,2658.9,2658.6,0.57387096]
[1646518717383,3.876,2658.8,2658.6,0.57387096]
[1646518717583,3.876,2658.7,2658.6,0.00328594]
[1646518717782,0.376,2658.7,2658.6,0.00328594]
[1646518717985,3.876,2658.7,2658.6,0.00328594]
[1646518718182,3.876,2658.7,2657.9,0.9818383]
[1646518718482,1.04248555,2658.6,2658.5,0.003286]
[1646518719283,1.04248555,2658.6,2657.9,0.9818383]
[1646518719482,1.04248555,2658.6,2658.4,0.00317618]
[1646518719682,3.5,2658.5,2658.4,0.00317618]
[1646518720336,0.96361358,2658.1,2657.9,0.88501448]
[1646518721536,3.5,2658.5,2657.9,0.88501448]
[1646518721746,0.376,2658.7,2657.9,0.88501448]
[1646518722739,1.05828582,2658.6,2658.0,1.20101578]
[1646518723138,1.05828582,2658.6,2658.2,0.00318611]
[1646518723539,4.55828582,2658.6,2658.2,0.00318611]
[1646518723979,4.55828582,2658.6,2657.9,0.88501448]
[1646518724283,4.55828582,2658.6,2658.3,0.00318605]
[1646518725284,4.55828582,2658.6,2657.9,0.88501448]
[1646518725488,4.55828582,2658.6,2658.3,0.00318608]
[1646518726284,1.05828582,2658.6,2658.3,0.00318608]
[1646518726483,1.05828582,2658.6,2657.9,0.88501448]
[1646518726683,1.05828582,2658.6,2658.3,0.0030639]
[1646518727543,1.05828582,2658.6,2657.9,0.88501448]
[1646518727931,1.05828582,2658.6,2658.3,0.0030639]
[1646518728840,1.05828582,2658.6,2657.9,0.88501448]
[1646518729033,1.05828582,2658.6,2658.3,0.0030639]
[1646518730036,1.05828582,2658.6,2657.9,1.42501448]
[1646518730237,1.05828582,2658.6,2658.3,0.0030762]
[1646518731280,1.05828582,2658.6,2657.9,0.88501448]
[1646518731480,1.05828582,2658.6,2658.3,0.0030762]
[1646518732087,3.5,2658.7,2658.3,0.0030762]
[1646518732283,14.2688,2658.8,2658.3,0.0030762]
[1646518732483,14.2688,2658.8,2657.9,0.88501448]
[1646518732484,14.2688,2658.8,2657.9,1.42501448]
[1646518732682,3.5,2658.7,2658.3,0.0030762]
[1646518733483,1.20806933,2658.4,2658.3,0.0030762]
[1646518733685,1.20806933,2658.4,2657.9,1.42501448]
[1646518733884,1.20806933,2658.4,2658.3,0.00307499]
[1646518734288,3.5,2658.7,2658.3,0.00307499]
[1646518734885,3.5,2658.7,2657.7,2.08314488]
[1646518735136,3.5,2658.7,2657.7,1.188]
[1646518735334,3.5,2658.7,2658.3,0.00307499]
[1646518735938,3.5,2658.7,2657.7,0.188]
[1646518736136,3.5,2658.7,2657.6,1.728]
[1646518736337,0.86550493,2658.2,2657.6,3.95713051]
[1646518736538,0.86550493,2658.2,2657.6,2.95713051]
[1646518736740,0.86550493,2658.2,2657.6,3.95713051]
[1646518736939,0.86550493,2658.2,2657.6,2.76913051]
[1646518737138,0.86550493,2658.2,2657.6,3.76913051]
[1646518737539,0.86550493,2658.2,2657.8,0.00307535]
[1646518738439,0.86550493,2658.2,2657.6,3.76913051]
[1646518738640,0.86550493,2658.2,2657.9,0.00307529]
[1646518739278,15.316,2658.7,2657.9,0.00307529]
[1646518739480,3.876,2658.7,2657.9,0.00307529]
[1646518739679,3.876,2658.7,2657.6,3.76913051]
[1646518739886,3.876,2658.7,2657.9,0.00307526]
[1646518740286,15.316,2658.7,2657.9,0.00307526]
[1646518740484,16.2726441,2658.7,2658.1,0.99034725]
[1646518740784,16.1726441,2658.7,2658.1,0.99034725]
[1646518741084,16.1726441,2658.7,2658.2,0.00307512]
[1646518742086,16.1726441,2658.7,2657.7,0.93644462]
[1646518742287,4.7326441,2658.7,2658.3,0.00307509]
[1646518743132,4.6826441,2658.7,2657.7,1.12444462]
[1646518743332,16.1226441,2658.7,2657.7,1.12444462]
[1646518743532,16.1226441,2658.7,2658.3,0.00307512]
[1646518743739,4.6826441,2658.7,2658.3,0.00307512]
[1646518744137,4.3066441,2658.7,2658.3,0.00307512]
[1646518744338,4.3066441,2658.7,2657.7,1.12444462]
[1646518744738,4.3066441,2658.7,2658.3,0.0030751]
[1646518745540,4.3066441,2658.7,2657.8,0.54]
[1646518745840,0.9566441,2658.7,2658.3,0.0030751]
[1646518746784,0.9566441,2658.7,2658.1,1.17409065]
[1646518746984,0.9566441,2658.7,2658.3,0.0030751]
[1646518748086,0.9566441,2658.7,2657.8,0.54]
[1646518748287,0.9566441,2658.7,2658.3,0.0030751]
[1646518748687,2.4528,2658.8,2658.3,0.0030751]
[1646518749289,2.4528,2658.8,2657.8,0.54]
[1646518749488,2.4528,2658.8,2658.3,0.00307513]
[1646518749886,2.4528,2658.8,2658.3,1.15069526]
[1646518750140,2.33380614,2658.9,2658.3,1.15069526]
[1646518750343,2.33380614,2658.9,2658.3,1.14762013]
[1646518750739,2.33380614,2658.9,2658.3,1.15069526]
[1646518751542,2.33380614,2658.9,2658.3,1.14762013]
[1646518751942,2.33380614,2658.9,2658.3,1.15069529]
[1646518752741,2.33380614,2658.9,2658.3,1.14762013]
[1646518752941,1.1431,2658.9,2658.3,1.14762013]
[1646518753146,1.1431,2658.9,2658.3,1.15069529]
[1646518754084,1.1431,2658.9,2658.3,1.14762013]
[1646518754283,1.1431,2658.9,2658.3,1.15069529]
[1646518755289,1.1431,2658.9,2658.3,1.14762013]
[1646518755489,1.1431,2658.9,2658.3,1.15069529]
[1646518756492,1.1431,2658.9,2658.3,1.14762013]